fUST/lending_fUST_20240902
["ID","MTS","AMOUNT","RATE_DAILY","PERIOD"]
[336890353,1725234651215,-500.0,0.00024931,2]
[336890354,1725234651225,-4502.11,0.00024931,2]
[336890355,1725234651235,-500.0,0.00024931,2]
[336890356,1725234651246,-500.0,0.00024931,2]
[336890357,1725234651257,-500.0,0.00024931,2]
[336890358,1725234651267,-792.57,0.00024931,2]
[336890359,1725234651277,-500.0,0.00024931,2]
[336890360,1725234651289,-500.0,0.00024931,2]
[336890361,1725234651300,-500.0,0.00024931,2]
[336890362,1725234651310,-500.0,0.00024931,2]
[336890363,1725234651320,-500.0,0.00024931,2]
[336890364,1725234651482,-500.0,0.00024931,2]
[336890365,1725234651492,-887.63,0.00024931,2]
[336890366,1725234651502,-500.0,0.00024931,2]
[336890367,1725234651512,-500.0,0.00024931,2]
[336890368,1725234651521,-500.0,0.00024931,2]
[336890369,1725234651531,-500.0,0.00024931,2]
[336890370,1725234651541,-1440.62,0.00024931,2]
[336890371,1725234651551,-155.00327664,0.00024931,2]
[336890372,1725234651560,-500.0,0.00024931,2]
[336890373,1725234651570,-500.0,0.00024931,2]
[336890374,1725234651580,-251.9472781,0.00024931,2]
[336890375,1725234651590,-665.59,0.00024931,2]
[336890376,1725234651599,-500.0,0.00024931,2]
[336890377,1725234651609,-500.0,0.00024931,2]
[336890378,1725234651619,-500.0,0.00024931,2]
[336890379,1725234651628,-500.0,0.00024931,2]
[336890380,1725234651638,-500.0,0.00024931,2]
[336890381,1725234651647,-500.0,0.00024931,2]
[336890382,1725234651657,-718.63,0.00024931,2]
[336890383,1725234651667,-500.0,0.00024931,2]
[336890384,1725234651677,-500.0,0.00024931,2]
[336890385,1725234651687,-500.0,0.00024931,2]
[336890386,1725234651698,-500.0,0.00024931,2]
[336890387,1725234651708,-500.0,0.00024931,2]
[336890388,1725234651718,-500.0,0.00024931,2]
[336890389,1725234651730,-500.0,0.00024931,2]
[336890390,1725234651740,-500.0,0.00024931,2]
[336890391,1725234651750,-500.0,0.00024931,2]
[336890392,1725234651760,-500.0,0.00024931,2]
[336890393,1725234651769,-500.0,0.00024931,2]
[336890394,1725234651779,-500.0,0.00024931,2]
[336890395,1725234651789,-500.0,0.00024931,2]
[336890396,1725234651798,-628.61,0.00024931,2]
[336890397,1725234651808,-500.0,0.00024931,2]
[336890398,1725234651817,-500.0,0.00024931,2]
[336890399,1725234651827,-500.0,0.00024931,2]
[336890400,1725234651837,-500.0,0.00024931,2]
[336890401,1725234651846,-500.0,0.00024931,2]
[336890402,1725234651856,-500.0,0.00024931,2]
[336890403,1725234651866,-500.0,0.00024931,2]
[336890404,1725234651875,-500.0,0.00024931,2]
[336890405,1725234651885,-500.0,0.00024931,2]
[336890406,1725234651894,-500.0,0.00024931,2]
[336890407,1725234651904,-500.0,0.00024931,2]
[336890408,1725234651913,-500.0,0.00024931,2]
[336890409,1725234651923,-500.0,0.00024931,2]
[336890410,1725234651932,-500.0,0.00024931,2]
[336890411,1725234651941,-500.0,0.00024931,2]
[336890412,1725234651951,-500.0,0.00024931,2]
[336890413,1725234651960,-504.54,0.00024931,2]
[336890414,1725234651970,-500.0,0.00024931,2]
[336890415,1725234651980,-500.0,0.00024931,2]
[336890416,1725234651990,-500.0,0.00024931,2]
[336890417,1725234651998,-500.0,0.00024931,2]
[336890418,1725234652008,-778.49,0.00024931,2]
[336890419,1725234652017,-500.0,0.00024931,2]
[336890420,1725234652026,-500.0,0.00024931,2]
[336890421,1725234652035,-643.02,0.00024931,2]
[336890422,1725234652043,-500.0,0.00024931,2]
[336890423,1725234652053,-500.0,0.00024931,2]
[336890424,1725234652063,-500.0,0.00024931,2]
[336890425,1725234652072,-1293.81,0.00024931,2]
[336890426,1725234652081,-500.0,0.00024931,2]
[336890427,1725234652090,-500.0,0.00024931,2]
[336890428,1725234652099,-500.0,0.00024931,2]
[336890429,1725234652109,-505.59845591,0.00024931,2]
[336890430,1725234652118,-500.0,0.00024931,2]
[336890431,1725234652127,-500.0,0.00024931,2]
[336890432,1725234652136,-500.0,0.00024931,2]
[336890433,1725234652145,-1854.68,0.00024931,2]
[336890434,1725234652155,-500.0,0.00024931,2]
[336890435,1725234652164,-500.0,0.00024931,2]
[336890436,1725234652173,-815.07,0.00024931,2]
[336890437,1725234652183,-1057.2,0.00024931,2]
[336890438,1725234652192,-315.78179733,0.00024931,2]
[336890439,1725234652203,-500.0,0.00024931,2]
[336890440,1725234652213,-500.0,0.00024931,2]
[336890441,1725234652222,-500.0,0.00024931,2]
[336890442,1725234652232,-597.96,0.00024931,2]
[336890443,1725234652240,-500.0,0.00024931,2]
[336890444,1725234652252,-500.0,0.00024931,2]
[336890445,1725234652261,-500.0,0.00024931,2]
[336890446,1725234652270,-997.55,0.00024931,2]
[336890447,1725234652282,-500.0,0.00024931,2]
[336890448,1725234652291,-500.0,0.00024931,2]
[336890449,1725234652300,-270.28823137,0.00024931,2]
[336890450,1725234652311,-500.0,0.00024931,2]
[336890451,1725234652320,-505.74567991,0.00024931,2]
[336890452,1725234652332,-500.0,0.00024931,2]
[336890453,1725234652342,-500.0,0.00024931,2]
[336890454,1725234652353,-500.0,0.00024931,2]
[336890455,1725234652363,-500.0,0.00024931,2]
[336890456,1725234652373,-500.0,0.00024931,2]
[336890457,1725234652382,-500.0,0.00024931,2]
[336890458,1725234652392,-500.0,0.00024931,2]
[336890459,1725234652401,-500.0,0.00024931,2]
[336890460,1725234652411,-500.0,0.00024931,2]
[336890461,1725234652420,-500.0,0.00024931,2]
[336890462,1725234652429,-500.0,0.00024931,2]
[336890463,1725234652438,-500.0,0.00024931,2]
[336890464,1725234652449,-500.0,0.00024931,2]
[336890465,1725234652458,-500.0,0.00024931,2]
[336890466,1725234652468,-500.0,0.00024931,2]
[336890467,1725234652477,-500.0,0.00024931,2]
[336890468,1725234652486,-500.0,0.00024931,2]
[336890469,1725234652496,-500.0,0.00024931,2]
[336890470,1725234652505,-500.0,0.00024931,2]
[336890471,1725234652515,-501.76369509,0.00024931,2]
[336890472,1725234652523,-500.0,0.00024931,2]
[336890473,1725234652534,-640.22,0.00024931,2]
[336890474,1725234652545,-1166.94,0.00024931,2]
[336890475,1725234652558,-500.0,0.00024931,2]
[336890476,1725234652568,-500.0,0.00024931,2]
[336890477,1725234652577,-500.0,0.00024931,2]
[336890478,1725234652586,-500.0,0.00024931,2]
[336890479,1725234652595,-2343.7,0.00024931,2]
[336890480,1725234652605,-500.0,0.00024931,2]
[336890481,1725234652614,-750.84,0.00024931,2]
[336890482,1725234652623,-595.48,0.00024931,2]
[336890483,1725234652632,-532.51,0.00024931,2]
[336890484,1725234652641,-500.0,0.00024931,2]
[336890485,1725234652651,-500.0,0.00024931,2]
[336890486,1725234652660,-500.0,0.00024931,2]
[336890487,1725234652670,-931.53,0.00024931,2]
[336890488,1725234652679,-500.0,0.00024931,2]
[336890489,1725234652688,-500.0,0.00024931,2]
[336890490,1725234652700,-500.0,0.00024931,2]
[336890491,1725234652709,-550.76,0.00024931,2]
[336890492,1725234652719,-1425.41,0.00024931,2]
[336890493,1725234652728,-500.0,0.00024931,2]
[336890494,1725234652737,-500.0,0.00024931,2]
[336890495,1725234652746,-500.0,0.00024931,2]
[336890496,1725234652757,-642.31456498,0.00024931,2]
[336890497,1725234652774,-500.0,0.00024931,2]
[336890498,1725234652783,-500.0,0.00024931,2]
[336890499,1725234652792,-500.0,0.00024931,2]
[336890500,1725234652801,-500.0,0.00024931,2]
[336890501,1725234652810,-1495.62,0.00024931,2]
[336890502,1725234652819,-500.0,0.00024931,2]
[336890503,1725234652828,-842.71,0.00024931,2]
[336890504,1725234652837,-1573.41,0.00024931,2]
[336890505,1725234652846,-500.0,0.00024931,2]
[336890506,1725234652855,-500.0,0.00024931,2]
[336890507,1725234652864,-500.0,0.00024931,2]
[336890508,1725234652874,-2371.23,0.00024931,2]
[336890509,1725234652882,-206.020974,0.00024931,7]
[336890510,1725234652892,-500.0,0.00024931,2]
[336890511,1725234652901,-500.0,0.00024931,2]
[336890512,1725234652910,-500.0,0.00024931,2]
[336890513,1725234652920,-885.94,0.00024931,2]
[336890514,1725234652929,-500.0,0.00024931,2]
[336890515,1725234652938,-500.0,0.00024931,2]
[336890516,1725234652949,-206.020974,0.00024931,7]
[336890517,1725234652958,-500.0,0.00024931,2]
[336890518,1725234652967,-2308.78,0.00024931,2]
[336890519,1725234652976,-500.0,0.00024931,2]
[336890520,1725234652986,-790.64,0.00024931,2]
[336890521,1725234652995,-500.0,0.00024931,2]
[336890522,1725234653005,-500.0,0.00024931,2]
[336890523,1725234653016,-500.0,0.00024931,2]
[336890524,1725234653027,-500.0,0.00024931,2]
[336890525,1725234653037,-500.0,0.00024931,2]
[336890526,1725234653046,-1792.11,0.00024931,2]
[336890527,1725234653055,-2061.81,0.00024931,2]
[336890528,1725234653065,-622.66,0.00024931,2]
[336890529,1725234653074,-500.0,0.00024931,2]
[336890530,1725234653083,-1574.91,0.00024931,2]
[336890531,1725234653093,-500.0,0.00024931,2]
[336890532,1725234653102,-500.0,0.00024931,2]
[336890533,1725234653111,-500.0,0.00024931,2]
[336890534,1725234653120,-679.8,0.00024931,2]
[336890535,1725234653129,-500.0,0.00024931,2]
[336890536,1725234653138,-500.0,0.00024931,2]
[336890537,1725234653147,-600.9,0.00024931,2]
[336890538,1725234653156,-505.05089213,0.00024931,2]
[336890539,1725234653165,-500.0,0.00024931,2]
[336890540,1725234653174,-500.0,0.00024931,2]
[336890541,1725234653183,-581.61373928,0.00024931,2]
[336890542,1725234653192,-2339.41,0.00024931,2]
[336890543,1725234653205,-500.0,0.00024931,2]
[336890544,1725234653215,-581.06,0.00024931,2]
[336890545,1725234653225,-500.0,0.00024931,2]
[336890546,1725234653234,-500.0,0.00024931,2]
[336890547,1725234653243,-500.0,0.00024931,2]
[336890548,1725234653255,-500.0,0.00024931,2]
[336890549,1725234653266,-500.0,0.00024931,2]
[336890550,1725234653275,-636.01,0.00024931,2]
[336890551,1725234653286,-500.0,0.00024931,2]
[336890552,1725234653295,-500.0,0.00024931,2]
[336890553,1725234653304,-2884.56,0.00024931,2]
[336890554,1725234653314,-524.17276754,0.00024931,2]
[336890555,1725234653323,-500.0,0.00024931,2]
[336890556,1725234653332,-500.0,0.00024931,2]
[336890557,1725234653341,-557.48951493,0.00024931,2]
[336890558,1725234653350,-500.0,0.00024931,2]
[336890559,1725234653359,-500.0,0.00024931,2]
[336890560,1725234653368,-529.72,0.00024931,2]
[336890561,1725234653377,-14211.36,0.00024931,2]
[336890562,1725234653386,-500.0,0.00024931,2]
[336890563,1725234653395,-500.0,0.00024931,2]
[336890564,1725234653404,-500.0,0.00024931,2]
[336890565,1725234653414,-500.0,0.00024931,2]
[336890566,1725234653424,-1368.92,0.00024931,2]
[336890567,1725234653433,-3440.28,0.00024931,2]
[336890568,1725234653442,-1823.39,0.00024931,2]
[336890569,1725234653451,-500.0,0.00024931,2]
[336890570,1725234653460,-672.02,0.00024931,2]
[336890571,1725234653470,-500.0,0.00024931,2]
[336890572,1725234653479,-1948.94,0.00024931,2]
[336890573,1725234653488,-500.0,0.00024931,2]
[336890574,1725234653497,-500.0,0.00024931,2]
[336890575,1725234653507,-799.02,0.00024931,2]
[336890576,1725234653516,-500.0,0.00024931,2]
[336890577,1725234653526,-324.27186465,0.00024931,2]
[336890578,1725234653535,-500.0,0.00024931,2]
[336890579,1725234653544,-500.0,0.00024931,2]
[336890580,1725234653553,-500.0,0.00024931,2]
[336890581,1725234653563,-500.0,0.00024931,2]
[336890582,1725234653572,-500.0,0.00024931,2]
[336890583,1725234653581,-500.0,0.00024931,2]
[336890584,1725234653591,-528.95,0.00024931,2]
[336890585,1725234653600,-500.0,0.00024931,2]
[336890586,1725234653609,-500.0,0.00024931,2]
[336890587,1725234653619,-500.0,0.00024931,2]
[336890588,1725234653735,-694.52,0.00024931,2]
[336890589,1725234653747,-2904.61,0.00024931,2]
[336890590,1725234653757,-500.0,0.00024931,2]
[336890591,1725234653767,-500.0,0.00024931,2]
[336890592,1725234653775,-501.58213849,0.00024931,2]
[336890593,1725234653785,-500.0,0.00024931,2]
[336890594,1725234653794,-2592.68,0.00024931,2]
[336890595,1725234653803,-500.0,0.00024931,2]
[336890596,1725234653812,-772.5,0.00024931,2]
[336890597,1725234653822,-500.0,0.00024931,2]
[336890598,1725234653831,-500.0,0.00024931,2]
[336890599,1725234653840,-653.34,0.00024931,2]
[336890600,1725234653849,-500.0,0.00024931,2]
[336890601,1725234653858,-412.68281981,0.00024931,2]
[336890602,1725234653867,-2384.61,0.00024931,2]
[336890603,1725234653876,-500.0,0.00024931,2]
[336890604,1725234653885,-500.0,0.00024931,2]
[336890605,1725234653894,-500.0,0.00024931,2]
[336890606,1725234653903,-805.1,0.00024931,2]
[336890607,1725234653912,-500.0,0.00024931,2]
[336890608,1725234653921,-500.0,0.00024931,2]
[336890609,1725234653932,-500.0,0.00024931,2]
[336890610,1725234653944,-500.0,0.00024931,2]
[336890611,1725234653954,-500.0,0.00024931,2]
[336890612,1725234653964,-500.0,0.00024931,2]
[336890613,1725234653973,-796.33,0.00024931,2]
[336890614,1725234653983,-500.0,0.00024931,2]
[336890615,1725234653992,-500.0,0.00024931,2]
[336890616,1725234654001,-302.37385269,0.00024931,2]
[336890617,1725234654010,-500.0,0.00024931,2]
[336890618,1725234654020,-500.0,0.00024931,2]
[336890619,1725234654030,-500.0,0.00024931,2]
[336890620,1725234654040,-500.0,0.00024931,2]
[336890621,1725234654050,-500.0,0.00024931,2]
[336890622,1725234654060,-1568.11,0.00024931,2]
[336890623,1725234654070,-1207.86,0.00024931,2]
[336890624,1725234654081,-1621.62,0.00024931,2]
[336890625,1725234654090,-500.0,0.00024931,2]
[336890626,1725234654100,-500.0,0.00024931,2]
[336890627,1725234654111,-500.0,0.00024931,2]
[336890628,1725234654121,-500.0,0.00024931,2]
[336890629,1725234654131,-1686.38,0.00024931,2]
[336890630,1725234654140,-500.0,0.00024931,2]
[336890631,1725234654149,-1764.74,0.00024931,2]
[336890632,1725234654159,-1579.74,0.00024931,2]
[336890633,1725234654169,-1406.03,0.00024931,2]
[336890634,1725234654179,-1078.22,0.00024931,2]
[336890635,1725234654187,-1800.22,0.00024931,2]
[336890636,1725234654197,-568.68681265,0.00024931,2]
[336890637,1725234654209,-500.0,0.00024931,2]
[336890638,1725234654219,-502.07144363,0.00024931,2]
[336890639,1725234654228,-500.0,0.00024931,2]
[336890640,1725234654237,-602.89,0.00024931,2]
[336890641,1725234654246,-500.0,0.00024931,2]
[336890642,1725234654255,-1193.98,0.00024931,2]
[336890643,1725234654264,-500.0,0.00024931,2]
[336890644,1725234654274,-2967.95,0.00024931,2]
[336890645,1725234654283,-500.0,0.00024931,2]
[336890646,1725234654292,-500.0,0.00024931,2]
[336890647,1725234654302,-500.0,0.00024931,2]
[336890648,1725234654313,-726.25,0.00024931,2]
[336890649,1725234654323,-500.0,0.00024931,2]
[336890650,1725234654332,-502.31720496,0.00024931,2]
[336890651,1725234654342,-500.0,0.00024931,2]
[336890652,1725234654351,-500.0,0.00024931,2]
[336890653,1725234654362,-517.56,0.00024931,2]
[336890654,1725234654371,-1970.09,0.00024931,2]
[336890655,1725234654380,-500.0,0.00024931,2]
[336890656,1725234654390,-500.0,0.00024931,2]
[336890657,1725234654400,-872.55,0.00024931,2]
[336890658,1725234654409,-500.0,0.00024931,2]
[336890659,1725234654419,-652.84,0.00024931,2]
[336890660,1725234654429,-500.0,0.00024931,2]
[336890661,1725234654439,-862.09,0.00024931,2]
[336890662,1725234654449,-500.0,0.00024931,2]
[336890663,1725234654459,-500.0,0.00024931,2]
[336890664,1725234654469,-1023.44,0.00024931,2]
[336890665,1725234654479,-500.0,0.00024931,2]
[336890666,1725234654488,-500.0,0.00024931,2]
[336890667,1725234654500,-8915.77,0.00024931,2]
[336890668,1725234654510,-500.0,0.00024931,2]
[336890669,1725234654519,-500.0,0.00024931,2]
[336890670,1725234654528,-6234.13,0.00024931,2]
[336890671,1725234654538,-1240.79,0.00024931,2]
[336890672,1725234654547,-1255.86,0.00024931,2]
[336890673,1725234654558,-866.44,0.00024931,2]
[336890674,1725234654567,-500.0,0.00024931,2]
[336890675,1725234654577,-500.0,0.00024931,2]
[336890676,1725234654586,-500.0,0.00024931,2]
[336890677,1725234654596,-1746.75,0.00024931,2]
[336890678,1725234654605,-691.6,0.00024931,2]
[336890679,1725234654615,-500.0,0.00024931,2]
[336890680,1725234654624,-1410.55,0.00024931,2]
[336890681,1725234654634,-501.51833889,0.00024931,2]
[336890682,1725234654643,-1497.21,0.00024931,2]
[336890683,1725234654652,-729.96,0.00024931,2]
[336890684,1725234654662,-500.0,0.00024931,2]
[336890685,1725234654671,-2008.27,0.00024931,2]
[336890686,1725234654682,-500.0,0.00024931,2]
[336890687,1725234654691,-500.0,0.00024931,2]
[336890688,1725234654701,-1749.84,0.00024931,2]
[336890689,1725234654710,-500.0,0.00024931,2]
[336890690,1725234654719,-803.27,0.00024931,2]
[336890691,1725234654728,-1660.01,0.00024931,2]
[336890692,1725234654738,-500.0,0.00024931,2]
[336890693,1725234654748,-405.66399711,0.00024931,2]
[336890694,1725234654757,-200.0,0.00024931,2]
[336890695,1725234654766,-500.0,0.00024931,2]
[336890696,1725234654775,-500.0,0.00024931,2]
[336890697,1725234654785,-756.85,0.00024931,2]
[336890698,1725234654794,-500.0,0.00024931,2]
[336890699,1725234654804,-347.67815756,0.00024931,2]
[336890700,1725234654813,-500.0,0.00024931,2]
[336890701,1725234654823,-500.0,0.00024931,2]
[336890702,1725234654832,-500.0,0.00024931,2]
[336890703,1725234654842,-1963.27,0.00024931,2]
[336890704,1725234654852,-1162.2,0.00024931,2]
[336890705,1725234654862,-1343.35,0.00024931,2]
[336890706,1725234654871,-3356.77,0.00024931,2]
[336890707,1725234654880,-815.2,0.00024931,2]
[336890708,1725234654891,-500.0,0.00024931,2]
[336890709,1725234654901,-500.0,0.00024931,2]
[336890710,1725234654911,-239.52337207,0.00024931,2]
[336890711,1725234654922,-500.0,0.00024931,2]
[336890712,1725234654933,-1291.81,0.00024931,2]
[336890713,1725234654943,-500.0,0.00024931,2]
[336890714,1725234654954,-1593.53,0.00024931,2]
[336890715,1725234654963,-2345.51,0.00024931,2]
[336890716,1725234654973,-2203.75,0.00024931,2]
[336890717,1725234654982,-500.0,0.00024931,2]
[336890718,1725234654991,-190.0,0.00024932,2]
[336890719,1725234655000,-415.886254,0.00024932,2]
[336890720,1725234655010,-153.0,0.00024932,2]
[336890721,1725234655020,-819.3959652,0.00024932,2]
[336890722,1725234655031,-500.0,0.00024973,2]
[336890723,1725234655041,-500.0,0.00024973,2]
[336890724,1725234655051,-712.9,0.00025,2]
[336890725,1725234655060,-150.112233,0.00025,2]
[336890726,1725234655070,-150.112233,0.00025,5]
[336890727,1725234655079,-150.112233,0.00025,5]
[336890728,1725234655088,-190.0,0.00025,2]
[336890729,1725234655098,-150.112233,0.00025,6]
[336890730,1725234655108,-156.0,0.00025,2]
[336890731,1725234655117,-153.0,0.00025068,2]
[336890732,1725234655126,-153.0,0.00025068,2]
[336890733,1725234655136,-153.0,0.00025068,2]
[336890734,1725234655146,-150.112233,0.000251,7]
[336890735,1725234655155,-150.112233,0.000251,10]
[336890736,1725234655165,-150.112233,0.000251,5]
[336890737,1725234655175,-4997.37955931,0.00025141,3]
[336890738,1725234655184,-3960.48637415,0.00025148,2]
[336890739,1725234655193,-818.2041352,0.00025151,2]
[336890740,1725234655206,-409.6979826,0.00025151,2]
[336890741,1725234655216,-819.3959652,0.00025151,2]
[336890742,1725234655226,-409.6979826,0.00025151,2]
[336890743,1725234655235,-819.3959652,0.00025151,2]
[336890744,1725234655244,-153.0,0.00025159,2]
[336890745,1725234655254,-153.0,0.00025159,2]
[336890746,1725234655263,-153.0,0.00025159,2]
[336890747,1725234655272,-150.0,0.00025186,2]
[336890748,1725234655283,-4997.37955931,0.00025195,3]
[336890749,1725234655292,-150.112233,0.000252,9]
[336890750,1725234655301,-150.112233,0.000252,7]
[336890751,1725234655310,-3000.0,0.000252,2]
[336890752,1725234655320,-150.112233,0.000252,7]
[336890753,1725234655329,-153.71,0.000252,7]
[336890754,1725234655338,-154.68,0.000252,7]
[336890755,1725234655347,-3804.23,0.00025204,2]
[336890756,1725234655356,-3804.23,0.00025204,2]
[336890757,1725234655365,-3804.23,0.00025204,2]
[336890758,1725234655375,-3804.23,0.00025204,2]
[336890759,1725234655384,-3804.23,0.00025204,2]
[336890760,1725234655393,-3804.23,0.00025204,2]
[336890761,1725234655403,-3804.23,0.00025204,2]
[336890762,1725234655412,-3804.23,0.00025204,2]
[336890763,1725234655422,-3804.44748006,0.00025204,2]
[336890764,1725234655431,-500.0,0.00025204,2]
[336890765,1725234655440,-500.0,0.00025204,2]
[336890766,1725234655452,-500.0,0.00025204,2]
[336890767,1725234655461,-500.0,0.00025204,2]
[336890768,1725234655471,-500.0,0.00025204,2]
[336890769,1725234655481,-263.14957392,0.00025204,2]
[336890770,1725234655491,-500.0,0.00025204,2]
[336890771,1725234655500,-500.0,0.00025204,2]
[336890772,1725234655509,-500.0,0.00025204,2]
[336890773,1725234655519,-500.0,0.00025204,2]
[336890774,1725234655528,-218.86,0.00025204,2]
[336890775,1725234655537,-500.0,0.00025205,2]
[336890776,1725234655547,-500.0,0.00025205,2]
[336890777,1725234655556,-500.0,0.00025205,2]
[336890778,1725234655566,-500.0,0.00025205,2]
[336890779,1725234655575,-500.0,0.00025205,2]
[336890780,1725234655584,-500.0,0.00025205,2]
[336890781,1725234655593,-500.0,0.00025205,2]
[336890782,1725234655602,-500.0,0.00025205,2]
[336890783,1725234655611,-1408.38,0.00025205,2]
[336890784,1725234655621,-500.0,0.00025205,2]
[336890785,1725234655630,-500.0,0.00025205,2]
[336890786,1725234655640,-500.0,0.00025205,2]
[336890787,1725234655649,-500.0,0.00025205,2]
[336890788,1725234655659,-500.0,0.00025205,2]
[336890789,1725234655668,-500.0,0.00025205,2]
[336890790,1725234655677,-500.0,0.00025205,2]
[336890791,1725234655686,-500.0,0.00025205,2]
[336890792,1725234655695,-500.0,0.00025205,2]
[336890793,1725234655705,-500.0,0.00025205,2]
[336890794,1725234655815,-500.0,0.00025205,2]
[336890795,1725234655825,-500.0,0.00025205,2]
[336890796,1725234655835,-500.0,0.00025205,2]
[336890797,1725234655845,-500.0,0.00025205,2]
[336890798,1725234655854,-500.0,0.00025205,2]
[336890799,1725234655863,-500.0,0.00025205,2]
[336890800,1725234655873,-500.0,0.00025205,2]
[336890801,1725234655882,-500.0,0.00025205,2]
[336890802,1725234655892,-500.0,0.00025205,2]
[336890803,1725234655902,-500.0,0.00025205,2]
[336890804,1725234655911,-500.0,0.00025205,2]
[336890805,1725234655921,-634.0,0.00025205,2]
[336890806,1725234655931,-500.0,0.00025205,2]
[336890807,1725234655941,-500.0,0.00025205,2]
[336890808,1725234655954,-500.0,0.00025205,2]
[336890809,1725234655968,-500.0,0.00025205,2]
[336890810,1725234655977,-500.0,0.00025205,2]
[336890811,1725234655987,-500.0,0.00025205,2]
[336890812,1725234655996,-500.0,0.00025205,2]
[336890813,1725234656005,-908.72,0.00025205,2]
[336890814,1725234656015,-500.0,0.00025205,2]
[336890815,1725234656024,-500.0,0.00025205,2]
[336890816,1725234656034,-500.0,0.00025205,2]
[336890817,1725234656044,-500.0,0.00025205,2]
[336890818,1725234656053,-500.0,0.00025205,2]
[336890819,1725234656062,-500.0,0.00025205,2]
[336890820,1725234656071,-500.0,0.00025205,2]
[336890821,1725234656080,-500.0,0.00025205,2]
[336890822,1725234656088,-500.0,0.00025205,2]
[336890823,1725234656097,-500.0,0.00025205,2]
[336890824,1725234656106,-701.5,0.00025205,2]
[336890825,1725234656115,-500.0,0.00025205,2]
[336890826,1725234656124,-500.0,0.00025205,2]
[336890827,1725234656134,-500.0,0.00025205,2]
[336890828,1725234656142,-500.0,0.00025205,2]
[336890829,1725234656151,-500.0,0.00025205,2]
[336890830,1725234656160,-420.58768688,0.00025205,2]
[336890831,1725234656169,-500.0,0.00025205,2]
[336890832,1725234656178,-500.0,0.00025205,2]
[336890833,1725234656187,-500.0,0.00025205,2]
[336890834,1725234656196,-500.0,0.00025205,2]
[336890835,1725234656210,-500.0,0.00025205,2]
[336890836,1725234656219,-500.0,0.00025205,2]
[336890837,1725234656229,-500.0,0.00025205,2]
[336890838,1725234656239,-500.0,0.00025205,2]
[336890839,1725234656248,-271.67780194,0.00025205,2]
[336890840,1725234656257,-500.0,0.00025205,2]
[336890841,1725234656266,-151.0,0.00025205,7]
[336890842,1725234656276,-500.0,0.00025205,4]
[336890843,1725234656286,-500.0,0.00025205,2]
[336890844,1725234656295,-673.67,0.00025205,2]
[336890845,1725234656305,-151.0,0.00025205,7]
[336890846,1725234656314,-500.0,0.00025205,2]
[336890847,1725234656323,-500.0,0.00025205,2]
[336890848,1725234656332,-500.0,0.00025205,2]
[336890849,1725234656341,-500.0,0.00025205,2]
[336890850,1725234656351,-500.0,0.00025205,2]
[336890851,1725234656362,-500.0,0.00025205,2]
[336890852,1725234656371,-603.48,0.00025205,2]